[Event "44th Chess Olympiad Open 2022"]
[Site "Chennai"]
[Date "2022.07.30"]
[Round "2.49"]
[White "Khairallah, Faisal"]
[Black "Soriano, Rudolph P."]
[Result "1-0"]
[ECO "B00"]
[WhiteElo "2239"]
[BlackElo "1824"]
[Annotator "TA"]
[PlyCount "67"]
[EventDate "2022.07.29"]
[EventType "team-tourn"]
[EventCountry "IND"]
[SourceTitle "playchess.com"]
[Source "ChessBase"]
[SourceQuality "1"]
[WhiteTeam "Lebanon"]
[BlackTeam "GUM"]
[WhiteTeamCountry "LBN"]
[TimeControl "40/5400+30:1800+30"]

{[%evp 9,67,65,64,55,66,52,115,116,158,164,224,212,225,221,230,229,321,276,305,306,286,216,510,511,518,456,485,488,437,346,372,367,372,367,361,313,316,312,313,265,562,564,540,547,540,533,649,669,662,652,608,566,1137,729,2469,2237,1896,1837,1133,990]} 1. e4 {[%emt 0:00:05]} Nc6 {[%emt 0:00:13]} 2. d4 {[%emt 0:00:49][%cal Bd2d4,Bd4d5][%mdl 32]} e5 {[%emt 0:00:18]} 3. d5 {[%emt 0:01:02]} Nce7 {[%emt 0:00:12]} 4. Nf3 {[%emt 0:01:18][%cal Bg1f3,Bf3d2,Bd2c4][%mdl 32]} Ng6 {[%emt 0:00:24]} 5. h4 {[%emt 0:01:09]} h5 {[%emt 0:00:13]} 6. Bg5 {[%emt 0:13:18] B00: Queen's Fianchetto Defence, Nimzowitsch Defence.} Nf6 {[%emt 0:00:28]} 7. Be2 {[%emt 0:06:06] [#]} b6 $146 {[%emt 0:00:26]} ({Black should play} 7... Bc5 $14) ({Predecessor:} 7... Bc5 8. Nc3 c6 9. O-O Qc7 10. g3 d6 11. Bxf6 gxf6 12. dxc6 bxc6 13. Na4 Bb6 {½-½ (39) Kuosmanen,K (2263)-Soszynski,M (2261) ICCF email 2018}) 8. g3 $16 {[%emt 0:02:25] White is better.} Qe7 {[%emt 0:01:24]} 9. Nfd2 {[%emt 0:01:45]} Qb4 {[%emt 0:00:56]} (9... c6 {might work better.} 10. Nc3 b5) 10. Nc3 $18 {[%emt 0:06:42]} a6 {[%emt 0:01:57]} 11. a3 {[%emt 0:03:46]} Qe7 {[%emt 0:00:06]} (11... Qxb2 $2 12. Na4 Qxa1 13. Qxa1 $18) 12. Bxh5 {[%emt 0:02:19]} Qd6 {[%emt 0:05:16]} (12... Qd8 $142 13. d6 cxd6) 13. Bxg6 {[%emt 0:04:27]} fxg6 {[%emt 0:00:30]} 14. Nc4 {[%emt 0:00:16]} Qe7 {[%emt 0:01:29]} 15. d6 {[%emt 0:03:16]} cxd6 {[%emt 0:03:51] [#]} (15... Qe6) 16. Nd5 {[%emt 0:00:45]} Qd8 {[%emt 0:00:45]} 17. Ncxb6 {[%emt 0:00:50] Pair of Knights!} Rb8 {[%emt 0:01:29]} 18. Nxc8 {[%emt 0:01:29]} Rxc8 {[%emt 0:06:21]} 19. Qd3 {[%emt 0:01:14]} Rc6 {[%emt 0:02:47]} 20. O-O {[%emt 0:01:36][%cal Be1g1,Bg1g2,Bg2h3][%mdl 32]} Be7 {[%emt 0:02:16]} 21. c4 {[%emt 0:00:20]} O-O {[%emt 0:03:51]} 22. Rac1 {[%emt 0:02:30]} Nxd5 {[%emt 0:02:40]} 23. Qxd5+ {[%emt 0:02:06]} Kh7 {[%emt 0:01:00]} 24. Be3 {[%emt 0:02:48]} Bxh4 $2 {[%emt 0:05:18]} (24... g5 {was worth a try.} 25. hxg5 Bxg5) 25. Kg2 {[%emt 0:00:18] White is clearly winning.} Qf6 {[%emt 0:11:15]} 26. f3 {[%emt 0:05:44]} ({Not} 26. gxh4 Qf3+ 27. Kh2 Rf4 28. Bxf4 Qxf4+ 29. Kh3 Qf3+ 30. Kh2 Qf4+ 31. Kg2 Qg4+ 32. Kh1 Qh3+ 33. Kg1 Qg4+ 34. Kh2 Qf4+ $11) 26... g5 {[%emt 0:07:17]} 27. Rf2 {[%emt 0:03:49] Active counter play!} Kg6 {[%emt 0:06:24]} 28. gxh4 {[%emt 0:11:24]} gxh4 {[%emt 0:01:47]} 29. Rg1 {[%emt 0:01:32][%cal Bc1g1,Bg1g4,Bg4h4][%mdl 32]} Kh7 {[%emt 0:02:38]} 30. Kh3 {[%emt 0:00:35]} g6 {[%emt 0:03:56]} 31. Rg4 {[%emt 0:01:00]} Rh8 {[%emt 0:06:34]} 32. f4 {[%emt 0:00:30] [#] White wants to mate with f5.} Qe6 {[%emt 0:05:13]} 33. Qxe6 {[%emt 0:02:51]} dxe6 {[%emt 0:00:21]} 34. Rxh4+ {[%emt 0:00:13] Black did not feel at home in the position after the opening.  Weighted Error Value: White=0.18 (very precise) /Black=0.55} 1-0

[Event "44th Chess Olympiad Open 2022"]
[Site "Chennai"]
[Date "2022.07.30"]
[Round "2.49"]
[White "Khoder, Akram"]
[Black "Mafnas, Peter"]
[Result "1-0"]
[ECO "D11"]
[WhiteElo "2038"]
[BlackElo "2039"]
[Annotator "TA"]
[PlyCount "95"]
[EventDate "2022.07.29"]
[EventType "team-tourn"]
[EventCountry "IND"]
[SourceTitle "playchess.com"]
[Source "ChessBase"]
[SourceQuality "1"]
[WhiteTeam "Lebanon"]
[BlackTeam "GUM"]
[WhiteTeamCountry "LBN"]
[TimeControl "40/5400+30:1800+30"]

{[%evp 9,95,4,11,0,0,0,0,0,12,-20,21,28,34,0,10,0,14,0,8,0,28,18,28,6,0,0,141,0,0,0,74,87,88,86,86,35,133,131,127,4,22,37,45,39,44,30,48,40,40,39,42,37,49,51,46,33,31,8,62,55,225,206,208,196,455,452,445,422,351,581,592,591,612,574,477,574,556,548,12841,12841,12841,12842,12842,12842,12842,12841,12844,12843]} 1. d4 {[%emt 0:00:04]} d5 {[%emt 0:00:07]} 2. c4 {[%emt 0:00:17]} c6 {[%emt 0:00:11]} 3. Nf3 {[%emt 0:00:06]} Nf6 {[%emt 0:00:07]} 4. g3 {[%emt 0:00:18]} Bf5 {[%emt 0:00:18]} 5. Nc3 {[%emt 0:00:07]} e6 {[%emt 0:00:08]} 6. Qb3 {[%emt 0:01:14] D11: Slav Defence: 3 Nf3 sidelines and 3...Nf6 4 e3 Bg4.} Qb6 {[%emt 0:04:44]} 7. c5 {[%emt 0:00:41]} Qxb3 {[%emt 0:00:07]} 8. axb3 {[%emt 0:00:04] The position is equal.} Be7 {[%emt 0:00:38]} 9. b4 {[%emt 0:00:22]} a6 {[%emt 0:00:23]} 10. Bf4 {[%emt 0:08:59]} O-O {[%emt 0:00:23] [#]} 11. Bg2 $146 {[%emt 0:19:33]} ({Predecessor:} 11. Nd2 Nbd7 12. f3 Bg6 13. e4 h6 14. Be2 Rad8 15. Nb3 dxe4 16. Na5 Nb8 17. O-O-O {½-½ (51) Shariyazdanov,A (2526)-Goganov,A (2559) Voronezh 2019}) 11... Nh5 {[%emt 0:02:46]} 12. Be3 {[%emt 0:09:21]} Nd7 {[%emt 0:00:41]} 13. Nd2 {[%emt 0:00:26]} e5 {[%emt 0:07:37]} 14. Nb3 {[%emt 0:01:07]} Bc2 {[%emt 0:09:51]} 15. Na5 {[%emt 0:01:56]} Rab8 {[%emt 0:00:25]} 16. Bh3 {[%emt 0:02:58]} exd4 {[%emt 0:01:50]} 17. Bxd4 {[%emt 0:01:55]} Bf6 {[%emt 0:00:08]} (17... Nhf6 $11) 18. e3 {[%emt 0:11:46]} (18. Kd2 $16) 18... Ne5 $11 {[%emt 0:00:59]} 19. Kd2 {[%emt 0:08:45]} Be4 {[%emt 0:03:01]} (19... Bg6 $11 {keeps the balance.}) 20. Nxe4 $16 {[%emt 0:20:02]} dxe4 {[%emt 0:00:08]} 21. Bg2 {[%emt 0:00:26]} Nd3 {[%emt 0:04:09] [#]} 22. Rhf1 {[%emt 0:02:26]} (22. f3 $1 $16) 22... Rfd8 {[%emt 0:01:32]} (22... Nxb4 $14 23. Ra4 (23. Bxe4 Bxd4 24. exd4 Nf6 $11) 23... Bxd4 24. exd4 Nd5) 23. Bxe4 {[%emt 0:05:49]} Nxb4 {[%emt 0:00:24] [#]} 24. Nb3 {[%emt 0:00:33] White is more active.} (24. Ra4 $1 $16 {[%cal Ra4b4]} Nd5 25. Bf3 Bxd4 26. Rxd4) 24... g6 {[%emt 0:03:30]} 25. Ke2 {[%emt 0:00:19]} Bxd4 {[%emt 0:00:38]} 26. Nxd4 {[%emt 0:00:10]} f5 {[%emt 0:00:52]} 27. Bf3 {[%emt 0:00:31]} Nf6 {[%emt 0:00:21]} 28. Rfd1 {[%emt 0:00:22]} Kf7 {[%emt 0:02:22]} 29. Ra4 {[%emt 0:00:34]} Nbd5 {[%emt 0:02:17]} 30. Nb3 {[%emt 0:00:42]} Nc7 {[%emt 0:00:49]} 31. Rxd8 $1 {[%emt 0:00:36]} Rxd8 {[%emt 0:00:05]} 32. Na5 {[%emt 0:00:05]} Rb8 {[%emt 0:00:16]} 33. Rd4 {[%emt 0:01:12]} Nfd5 {[%emt 0:00:36]} (33... Ne6 $11) 34. h4 {[%emt 0:00:33]} Ne6 $2 {[%emt 0:00:27] A mistake that costs the game.} (34... Nf6 $14) 35. Bxd5 $18 {[%emt 0:00:15]} cxd5 {[%emt 0:00:13]} 36. Rxd5 {[%emt 0:00:05] Black must now prevent Rd7+.} Rd8 {[%emt 0:01:50] Inhibits Rd7+.} (36... b6) 37. Rxd8 {[%emt 0:00:25]} Nxd8 {[%emt 0:00:08][%mdl 4096] Endgame KN-KN} 38. Kd3 {[%emt 0:00:17]} Ke6 {[%emt 0:00:11]} 39. Kd4 {[%emt 0:00:17]} h6 {[%emt 0:01:20] White is clearly winning.} 40. b3 {[%emt 0:01:02]} Kd7 {[%emt 0:01:28]} 41. Kd5 {[%emt 0:30:14]} Kc7 {[%emt 0:30:20]} 42. f3 {[%emt 0:01:00]} Kd7 {[%emt 0:00:28] [#]} 43. Nxb7 $1 {[%emt 0:00:21][%mdl 512]} Nxb7 {[%emt 0:00:07]} (43... Nc6 44. Nd6) 44. c6+ {[%emt 0:00:04]} Kc7 {[%emt 0:00:13]} 45. cxb7 {[%emt 0:00:05]} Kxb7 {[%emt 0:00:08]} 46. g4 {[%emt 0:00:12]} Kb6 {[%emt 0:00:12]} 47. e4 {[%emt 0:00:30]} fxg4 {[%emt 0:00:32]} 48. fxg4 {[%emt 0:00:06] Weighted Error Value: White=0.15 (very precise) /Black=0.38} 1-0

[Event "44th Chess Olympiad Open 2022"]
[Site "Chennai"]
[Date "2022.07.30"]
[Round "2.49"]
[White "Estur, Gavino Aguilar"]
[Black "Kassis, Antoine"]
[Result "0-1"]
[ECO "B20"]
[WhiteElo "1598"]
[BlackElo "2202"]
[Annotator "TA"]
[PlyCount "94"]
[EventDate "2022.07.29"]
[EventType "team-tourn"]
[EventCountry "IND"]
[SourceTitle "playchess.com"]
[Source "ChessBase"]
[SourceQuality "1"]
[WhiteTeam "GUM"]
[BlackTeam "Lebanon"]
[BlackTeamCountry "LBN"]
[TimeControl "40/5400+30:1800+30"]

{[%evp 9,94,-39,-26,-38,-32,-40,-17,-44,-17,-41,-28,-21,-18,-13,-8,-27,-21,-19,-14,-16,-11,-13,-15,-15,-10,-11,-9,-9,-10,-17,-22,-28,-31,-31,-27,-118,-125,-124,-127,-115,-115,-330,-275,-545,-520,-573,-566,-538,-115,-117,-97,-567,-547,-503,-490,-4994,-1080,-29970,-29972,-29972,-29972,-29972,-29973,-29973,-29974,-29976,-29977,-29977,-29978,-29978,-29979,-29979,-29980,-29980,-29981,-29981,-29982,-29982,-29983,-29985,-29984,-29984,-29985,-29985,-29986,-29986,-29987]} 1. e4 {[%emt 0:00:01]} c5 {[%emt 0:00:06]} 2. Nc3 {[%emt 0:00:17]} a6 {[%emt 0:00:47]} 3. a4 {[%emt 0:00:47]} e6 {[%emt 0:00:17]} 4. Bc4 {[%emt 0:01:12]} Nf6 {[%emt 0:00:57]} 5. e5 {[%emt 0:03:00]} d5 {[%emt 0:03:17]} 6. exd6 {[%emt 0:02:36] B20: Sicilian: Unusual White 2nd moves.} Bxd6 {[%emt 0:00:21]} 7. d3 {[%emt 0:01:29]} h6 {[%emt 0:02:22]} 8. Nf3 {[%emt 0:01:36] The position is equal.} O-O {[%emt 0:00:35]} 9. O-O {[%emt 0:00:08]} Nc6 {[%emt 0:00:27] [#]} 10. Ne4 $146 {[%emt 0:03:13]} ({Predecessor:} 10. Be3 Na5 11. Ba2 b6 12. d4 Bb7 13. dxc5 bxc5 14. Qe2 Ng4 15. h3 Bxf3 16. Qxf3 Nh2 17. Qh5 Nxf1 18. Kxf1 Qb8 {0-1 (18) Zmolil,K (1326)-Vio,M (1435) LSS email 2014}) 10... Nxe4 {[%emt 0:02:31]} 11. dxe4 {[%emt 0:00:19]} Qc7 {[%emt 0:01:08]} 12. h3 {[%emt 0:00:45]} Rb8 {[%emt 0:11:58]} 13. c3 {[%emt 0:01:14]} b5 {[%emt 0:00:36]} 14. axb5 {[%emt 0:01:52]} axb5 {[%emt 0:00:20]} 15. Bd3 {[%emt 0:02:49]} Rd8 {[%emt 0:02:20]} 16. Qe2 {[%emt 0:00:51]} c4 {[%emt 0:06:42]} 17. Bc2 {[%emt 0:00:59]} Bb7 {[%emt 0:03:46]} 18. Be3 {[%emt 0:03:25]} Ra8 {[%emt 0:12:16]} 19. Nd4 {[%emt 0:02:07]} Nxd4 {[%emt 0:01:03]} 20. cxd4 {[%emt 0:02:47]} Bh2+ {[%emt 0:09:52]} 21. Kh1 {[%emt 0:00:39] Black must now prevent Rxa8.} Bf4 {[%emt 0:00:03]} 22. Qg4 {[%emt 0:06:28]} (22. Rxa8 $11 {keeps the balance.} Rxa8 23. e5) 22... Rxa1 {[%emt 0:04:26]} 23. Rxa1 {[%emt 0:00:30]} Bxe3 {[%emt 0:00:13]} 24. fxe3 {[%emt 0:00:12]} b4 {[%emt 0:01:40][%cal Bb5b4,Bb4b3][%mdl 32]} 25. Qe2 $2 {[%emt 0:08:39]} (25. Rc1 $17) 25... b3 $19 {[%emt 0:07:58]} 26. Bd1 {[%emt 0:07:45]} (26. Bb1 c3 27. bxc3) 26... Bxe4 {[%emt 0:08:33]} 27. Rc1 {[%emt 0:00:27]} Qg3 {[%emt 0:03:54] Hoping for ...Rd5.} 28. Rxc4 {[%emt 0:00:56] [#]} Qxh3+ $2 {[%emt 0:00:12]} (28... Ra8 $1 $19 {[%cal Ra8a1] is more deadly. ( -> ...Ra1)} 29. Rc1 Ra5) 29. Kg1 $17 {[%emt 0:00:49]} Qg3 {[%emt 0:02:07] And now ...Ra8 would win. 0x0.001e3cd61464dp-1022s more active pieces.} 30. Bxb3 $2 {[%emt 0:00:39][%mdl 8192] [#]} (30. Qf2 $17 {is a better chance.} Qb8 31. Rc5) 30... Bxg2 $1 $19 {[%emt 0:00:44][%mdl 512]} 31. Qf2 {[%emt 0:04:41]} (31. Qxg2 Qxe3+) 31... Qh3 {[%emt 0:03:22][%csl Gg2][%cal Rh3h1]} 32. Qf4 {[%emt 0:06:45]} (32. Qxg2 $142 Qxe3+ 33. Kf1 Qxb3 34. Qe2) 32... Bd5 {[%emt 0:01:50]} (32... Qh1+ $142 33. Kf2 g5) 33. Kf2 {[%emt 0:05:08]} Qg2+ {[%emt 0:00:12] Black mates.} 34. Ke1 {[%emt 0:00:08]} Bxc4 {[%emt 0:00:34]} 35. Bxc4 {[%emt 0:00:38]} Qxb2 {[%emt 0:01:40] KQR-KQB} 36. Be2 {[%emt 0:00:48]} Rc8 {[%emt 0:00:26]} 37. Kf2 {[%emt 0:01:44]} Rc2 {[%emt 0:00:12]} 38. Qf3 {[%emt 0:00:12] [#]} Rxe2+ $1 {[%emt 0:00:07]} 39. Qxe2 {[%emt 0:00:05]} Qxe2+ {[%emt 0:00:05]} 40. Kxe2 {[%emt 0:00:25] KP-KP} Kf8 {[%emt 0:00:15]} 41. Kf3 {[%emt 0:30:17]} Ke7 {[%emt 0:30:05]} 42. Kf4 {[%emt 0:04:35]} g5+ {[%emt 0:02:25]} 43. Kg4 {[%emt 0:00:32]} f5+ {[%emt 0:00:12]} 44. Kh5 {[%emt 0:00:25]} g4 {[%emt 0:00:06]} 45. Kh4 {[%emt 0:00:32]} Kd6 {[%emt 0:00:05]} 46. Kg3 {[%emt 0:01:34]} Kd5 {[%emt 0:00:08]} 47. Kf4 {[%emt 0:00:19]} h5 {[%emt 0:00:16] Weighted Error Value: White=0.80/Black=0.38} 0-1

[Event "44th Chess Olympiad Open 2022"]
[Site "Chennai"]
[Date "2022.07.30"]
[Round "2.50"]
[White "Kett, Tim"]
[Black "Napoleao, Lourenco"]
[Result "1/2-1/2"]
[ECO "B77"]
[WhiteElo "2197"]
[BlackElo "1778"]
[Annotator "TA"]
[PlyCount "110"]
[EventDate "2022.07.29"]
[EventType "team-tourn"]
[EventCountry "IND"]
[SourceTitle "playchess.com"]
[Source "ChessBase"]
[SourceQuality "1"]
[WhiteTeam "Wales"]
[BlackTeam "Mozambique"]
[WhiteTeamCountry "WLS"]
[BlackTeamCountry "MOZ"]
[TimeControl "40/5400+30:1800+30"]

{[%evp 23,110,41,31,22,42,0,0,0,-6,-29,-29,-21,0,0,0,0,0,0,0,-29,-32,-30,-16,-25,-9,-14,-19,-31,-2,-2,0,0,0,0,0,0,0,0,0,0,0,0,0,0,0,0,0,0,0,0,0,0,0,0,0,0,0,0,0,0,0,0,0,0,0,0,0,0,0,0,0,0,0,0,0,0,0,0,0,0,0,0,0,0,0,0,0,0,0]} 1. e4 {[%emt 0:00:13]} c5 {[%emt 0:00:10]} 2. Nf3 {[%emt 0:00:13]} d6 {[%emt 0:00:08]} 3. d4 {[%emt 0:00:07]} cxd4 {[%emt 0:00:04]} 4. Nxd4 {[%emt 0:00:06]} Nf6 {[%emt 0:00:09]} 5. Nc3 {[%emt 0:00:09]} g6 {[%emt 0:00:36]} 6. Be3 {[%emt 0:00:27]} Bg7 {[%emt 0:00:06]} 7. f3 {[%emt 0:00:19]} O-O {[%emt 0:00:09]} 8. Qd2 {[%emt 0:00:07]} Nc6 {[%emt 0:00:08]} 9. Bc4 {[%emt 0:00:24]} Nxd4 {[%emt 0:06:52]} 10. Bxd4 {[%emt 0:00:26]} Be6 {[%emt 0:00:03]} 11. Bxe6 {[%emt 0:03:13]} fxe6 {[%emt 0:00:02]} 12. O-O-O {[%emt 0:02:03]} Qa5 {[%emt 0:00:11]} 13. Kb1 {[%emt 0:04:05] B77: Sicilian Dragon: Yugoslav Attack, 9 Bc4 sidelines.} Rac8 {[%emt 0:11:05]} 14. Rhe1 {[%emt 0:20:20] was the old line (14.h4).} Nd7 {[%emt 0:00:14] Prevents e5.} 15. Bxg7 {[%emt 0:06:25]} Kxg7 {[%emt 0:00:03]} 16. Ne2 {[%emt 0:05:32]} Qxd2 {[%emt 0:00:12]} 17. Rxd2 {[%emt 0:00:05] [#]} Kf7 $146 {[%emt 0:01:37]} ({Predecessor:} 17... e5 18. Nc3 Nf6 19. Re3 Rc5 20. Na4 Rc6 21. Rb3 b6 22. a3 g5 23. Nc3 Kf7 {0-1 (42) Alarcon Careaga,G (2134)-Spata,G (2323) Buenos Aires 2018}) 18. b3 {[%emt 0:04:47]} g5 {[%emt 0:06:30]} 19. c4 {[%emt 0:01:44]} Rc5 {[%emt 0:05:20]} 20. Nc1 {[%emt 0:10:49]} Ne5 {[%emt 0:06:19]} 21. Nd3 {[%emt 0:00:26]} Nxd3 {[%emt 0:00:02]} 22. Rxd3 $11 {[%emt 0:00:07][%mdl 4096] Endgame KRR-KRR} Rfc8 {[%emt 0:01:45]} 23. Re2 {[%emt 0:02:41]} a6 {[%emt 0:04:51]} 24. Kb2 {[%emt 0:02:59]} h5 {[%emt 0:10:42]} 25. g3 {[%emt 0:18:53]} Rh8 {[%emt 0:19:19]} 26. f4 {[%emt 0:05:52] The position is equal.} gxf4 {[%emt 0:04:19]} 27. gxf4 {[%emt 0:00:05]} Rg8 {[%emt 0:09:30]} 28. Rg3 {[%emt 0:00:18]} Rg4 {[%emt 0:02:02]} 29. Rxg4 {[%emt 0:02:25]} hxg4 {[%emt 0:00:02] KR-KR} 30. Rg2 {[%emt 0:00:27]} Rh5 {[%emt 0:00:12]} 31. Kc3 {[%emt 0:01:09]} b6 {[%emt 0:02:19]} 32. Kd4 {[%emt 0:02:26]} Kf6 {[%emt 0:03:51]} 33. b4 {[%emt 0:03:03]} a5 {[%emt 0:01:31]} 34. bxa5 {[%emt 0:03:01]} Rxa5 {[%emt 0:02:30]} 35. Rxg4 {[%emt 0:00:21]} e5+ {[%emt 0:00:57]} 36. fxe5+ {[%emt 0:00:30]} dxe5+ {[%emt 0:00:01]} 37. Kc3 {[%emt 0:00:17]} Rxa2 {[%emt 0:00:45]} 38. Rh4 {[%emt 0:01:03]} Kg6 {[%emt 0:02:11]} 39. Rh8 {[%emt 0:00:28]} Kg7 {[%emt 0:01:44]} 40. Rb8 {[%emt 0:00:46]} Rxh2 {[%emt 0:01:06]} 41. Rxb6 {[%emt 0:30:12]} Rh3+ {[%emt 0:08:43]} 42. Kb4 {[%emt 0:00:00] [#] c5 is the strong threat.} Re3 {[%emt 0:02:00]} 43. c5 {[%emt 0:00:00] Black must now prevent c6.} Rxe4+ {[%emt 0:01:46]} 44. Kb5 {[%emt 0:00:00]} Kf7 {[%emt 0:03:45]} 45. Kc6 {[%emt 0:00:00]} Re1 {[%emt 0:02:02]} 46. Kb7 {[%emt 0:00:00] [#] c6 would kill now.} Rc1 {[%emt 0:03:13]} 47. c6 {[%emt 0:00:00] Hoping for c7.} Ke6 {[%emt 0:01:16]} 48. Rb2 {[%emt 0:00:00]} e4 {[%emt 0:03:42]} 49. c7 {[%emt 0:00:00]} Kd5 {[%emt 0:03:58]} 50. c8=Q {[%emt 0:00:00]} Rxc8 {[%emt 0:00:18]} 51. Kxc8 {[%emt 0:00:00]} e3 {[%emt 0:00:23]} 52. Kd7 {[%emt 0:00:00]} Kd4 {[%emt 0:00:30]} 53. Kxe7 {[%emt 0:00:00]} Kd3 {[%emt 0:00:10]} 54. Ke6 {[%emt 0:00:00]} e2 {[%emt 0:00:04]} 55. Rxe2 {[%emt 0:00:00]} Kxe2 {[%emt 0:00:15] Weighted Error Value: White=0.04 (flawless) /Black=0.03 (flawless)} 1/2-1/2

[Event "44th Chess Olympiad Open 2022"]
[Site "Chennai"]
[Date "2022.07.30"]
[Round "2.50"]
[White "Vasco Mateus Felizardo Viageir"]
[Black "Blackburn, Jonathan L B"]
[Result "0-1"]
[ECO "C16"]
[WhiteElo "1852"]
[BlackElo "2176"]
[Annotator "TA"]
[PlyCount "66"]
[EventDate "2022.07.29"]
[EventType "team-tourn"]
[EventCountry "IND"]
[SourceTitle "playchess.com"]
[Source "ChessBase"]
[SourceQuality "1"]
[WhiteTeam "Mozambique"]
[BlackTeam "Wales"]
[WhiteTeamCountry "MOZ"]
[BlackTeamCountry "WLS"]
[TimeControl "40/5400+30:1800+30"]

{[%evp 9,66,12,20,15,35,0,22,16,68,25,19,-2,3,-9,0,-6,-11,0,-2,-25,-28,-45,-33,-70,-91,-90,-38,-84,-84,-70,-77,-69,-62,-70,-70,-135,-105,-157,-114,-110,-118,-169,-114,-247,-256,-268,-258,-331,-270,-541,-540,-518,-507,-29985,-29986,-29996,-29996,-29997,-29998]} 1. e4 {[%emt 0:00:08]} e6 {[%emt 0:00:07]} 2. d4 {[%emt 0:00:07]} d5 {[%emt 0:00:03]} 3. Nc3 {[%emt 0:00:48]} Bb4 {[%emt 0:00:07]} 4. e5 {[%emt 0:00:05]} b6 {[%emt 0:00:32]} 5. Bb5+ {[%emt 0:01:52]} c6 {[%emt 0:00:10]} 6. Bd3 {[%emt 0:00:09] C16: French: 3 Nc3 Bb4 4 e5: Lines without ...c5.} Ba6 {[%emt 0:02:30]} 7. Nge2 {[%emt 0:02:55]} Qc8 {[%emt 0:13:36]} 8. O-O {[%emt 0:09:14] [#] The position is equal.} Bf8 $146 {[%emt 0:07:23]} (8... Ne7 $11) ({Predecessor:} 8... Bxd3 9. Qxd3 Qa6 10. Qg3 Bf8 11. f4 Ne7 12. Qf3 h5 13. Nd1 Nf5 14. Ne3 g6 {0-1 (33) Maghsoodloo,P (2698)-Xiong,J (2709) Chess.com INT 2021}) 9. f4 {[%emt 0:07:22]} Ne7 {[%emt 0:03:34] Prevents f5.} 10. Kh1 {[%emt 0:00:36]} h5 {[%emt 0:00:56]} 11. Be3 {[%emt 0:09:15]} Bxd3 {[%emt 0:02:25]} 12. Qxd3 {[%emt 0:00:08]} Qa6 {[%emt 0:01:19]} 13. Qd2 {[%emt 0:00:06]} Nf5 {[%emt 0:00:42]} 14. Bf2 {[%emt 0:00:07]} c5 {[%emt 0:13:02]} 15. Rad1 {[%emt 0:13:45]} Nc6 {[%emt 0:03:55]} 16. a4 {[%emt 0:16:50]} Rc8 {[%emt 0:08:54]} 17. dxc5 {[%emt 0:05:13]} bxc5 {[%emt 0:01:15]} ({Black should play} 17... Bxc5 $17 18. Bxc5 bxc5) 18. Ne4 {[%emt 0:05:19]} Qc4 $17 {[%emt 0:11:08]} 19. N2c3 {[%emt 0:08:52]} Ncd4 {[%emt 0:03:02]} 20. b3 {[%emt 0:02:37]} Qb4 {[%emt 0:03:11]} 21. Ng5 {[%emt 0:01:41]} Be7 {[%emt 0:03:36]} 22. Be1 {[%emt 0:05:58]} (22. Qd3 $15) 22... a6 {[%emt 0:07:39] Black is more active.} 23. Qf2 {[%emt 0:00:40]} (23. Nf3 $142) 23... Qb7 {[%emt 0:01:25]} 24. a5 {[%emt 0:01:35]} h4 {[%emt 0:01:28][%cal Of5g3] White must now prevent ...Ng3+!} 25. Qd2 {[%emt 0:01:36]} (25. Nh3 $17) 25... Qc7 {[%emt 0:04:37]} (25... Bd8 $19 26. Qd3 c4 27. bxc4 Rxc4) 26. Na4 {[%emt 0:01:41] White does not recover from this.} (26. Bf2 $17 {is a better defense.}) 26... Bxg5 $19 {[%emt 0:00:24]} 27. fxg5 {[%emt 0:00:15]} Qxe5 {[%emt 0:00:09] Strongly threatening ...h3.} 28. Nb6 {[%emt 0:00:32]} Rd8 {[%emt 0:01:02]} 29. Bf2 $2 {[%emt 0:01:10] [#]} (29. Qf4 Qxf4 30. Rxf4) 29... Ng3+ $1 {[%emt 0:03:21][%mdl 512]} 30. Bxg3 {[%emt 0:00:19]} hxg3 {[%emt 0:00:02]} 31. h3 {[%emt 0:00:32]} (31. Rde1 $19 Rxh2+ 32. Kg1) 31... Qe4 $1 {[%emt 0:00:18][%csl LRc2,LRh3] Black mates.} 32. Rde1 {[%emt 0:00:22]} Rxh3+ {[%emt 0:00:10]} 33. Kg1 {[%emt 0:00:28] [#]} Rh1+ $3 {[%emt 0:00:03][%mdl 512] Weighted Error Value: White=0.53/Black=0.15 (very precise)} 0-1